[Event "Early-Titled-Tuesday-Blitz-May-14-2024"]
[Site "Chess.com"]
[Date "2024.05.14"]
[Round "10"]
[White "LangesNasenhaar"]
[Black "lefonghua"]
[Result "1-0"]
[WhiteElo "2488"]
[BlackElo "2585"]
[TimeControl "180+1"]
[EndTime "9:58:20 PDT"]
[Termination "LangesNasenhaar won on time"]

1. d4 {[%clk 0:03:00.9]} 1... Nf6 {[%clk 0:02:59.7]} 2. Nf3 {[%clk 0:03:01.4]}
2... g6 {[%clk 0:02:59.7]} 3. Bf4 {[%clk 0:02:59.9]} 3... Bg7 {[%clk 0:03:00]}
4. e3 {[%clk 0:03:00.5]} 4... O-O {[%clk 0:03:00.4]} 5. h3 {[%clk 0:03:01.2]}
5... d6 {[%clk 0:03:00.8]} 6. Be2 {[%clk 0:02:59.7]} 6... b6 {[%clk 0:02:59.9]}
7. O-O {[%clk 0:02:58.3]} 7... c5 {[%clk 0:03:00.2]} 8. c3 {[%clk 0:02:57.7]}
8... Bb7 {[%clk 0:03:00.5]} 9. a4 {[%clk 0:02:57.8]} 9... a6 {[%clk 0:03:00.4]}
10. Nbd2 {[%clk 0:02:55.3]} 10... Nbd7 {[%clk 0:03:00.6]} 11. Bh2 {[%clk
0:02:53.9]} 11... Ra7 {[%clk 0:03:00.8]} 12. Re1 {[%clk 0:02:52]} 12... Qa8
{[%clk 0:03:00.8]} 13. Qb3 {[%clk 0:02:48.9]} 13... Ne4 {[%clk 0:02:53.9]} 14.
Bf1 {[%clk 0:02:41.4]} 14... Bc6 {[%clk 0:02:27]} 15. Nxe4 {[%clk 0:02:37.7]}
15... Bxe4 {[%clk 0:02:27]} 16. Nd2 {[%clk 0:02:38.1]} 16... Bc6 {[%clk
0:02:14.6]} 17. Nc4 {[%clk 0:02:11.9]} 17... Rb8 {[%clk 0:01:55.6]} 18. Qd1
{[%clk 0:01:53.3]} 18... Bd5 {[%clk 0:01:47.3]} 19. Nd2 {[%clk 0:01:51.2]} 19...
cxd4 {[%clk 0:01:41.1]} 20. exd4 {[%clk 0:01:49.7]} 20... Nf6 {[%clk 0:01:39.3]}
21. Nc4 {[%clk 0:01:43]} 21... Rc7 {[%clk 0:01:31.2]} 22. Ne3 {[%clk 0:01:38.8]}
22... Be6 {[%clk 0:01:31.5]} 23. Be2 {[%clk 0:01:24]} 23... Qb7 {[%clk
0:01:28.8]} 24. Qd3 {[%clk 0:01:16.5]} 24... b5 {[%clk 0:01:25.3]} 25. Bf3
{[%clk 0:01:09.4]} 25... Qc8 {[%clk 0:01:21.7]} 26. d5 {[%clk 0:00:58.1]} 26...
Bd7 {[%clk 0:01:21.5]} 27. a5 {[%clk 0:00:54.8]} 27... b4 {[%clk 0:01:15.2]} 28.
c4 {[%clk 0:00:54.9]} 28... b3 {[%clk 0:01:12.2]} 29. Rac1 {[%clk 0:00:46.1]}
29... Rc5 {[%clk 0:01:02.2]} 30. Nf1 {[%clk 0:00:38.3]} 30... Qd8 {[%clk
0:00:55.9]} 31. Nd2 {[%clk 0:00:34.8]} 31... Rxa5 {[%clk 0:00:48.2]} 32. Nxb3
{[%clk 0:00:31.4]} 32... Ra2 {[%clk 0:00:48.5]} 33. Nd4 {[%clk 0:00:23.3]} 33...
Rbxb2 {[%clk 0:00:43.9]} 34. Nc6 {[%clk 0:00:23]} 34... Bxc6 {[%clk 0:00:44.4]}
35. dxc6 {[%clk 0:00:23.4]} 35... Ne8 {[%clk 0:00:35.8]} 36. Qe3 {[%clk
0:00:18.8]} 36... Bf6 {[%clk 0:00:31.5]} 37. c5 {[%clk 0:00:17.7]} 37... Rc2
{[%clk 0:00:24.3]} 38. cxd6 {[%clk 0:00:15.1]} 38... Nxd6 {[%clk 0:00:22.7]} 39.
Qd3 {[%clk 0:00:11.6]} 39... Rxc1 {[%clk 0:00:16.8]} 40. Rxc1 {[%clk 0:00:11.5]}
40... Qc7 {[%clk 0:00:17.1]} 41. Qb3 {[%clk 0:00:09.1]} 41... Ra1 {[%clk
0:00:14.7]} 42. Rxa1 {[%clk 0:00:08.3]} 42... Bxa1 {[%clk 0:00:15.6]} 43. Qb7
{[%clk 0:00:07.6]} 43... Nxb7 {[%clk 0:00:08.8]} 44. Bxc7 {[%clk 0:00:06.7]}
44... Nc5 {[%clk 0:00:06.6]} 45. Bd8 {[%clk 0:00:06.1]} 45... Ne6 {[%clk
0:00:05]} 46. c7 {[%clk 0:00:05.9]} 46... Nxc7 {[%clk 0:00:05.1]} 47. Bxc7
{[%clk 0:00:06.8]} 47... Bc3 {[%clk 0:00:04.1]} 48. Kf1 {[%clk 0:00:06.7]} 48...
Kg7 {[%clk 0:00:01.9]} 49. Ke2 {[%clk 0:00:06.6]} 49... Kf6 {[%clk 0:00:02.5]}
50. Bb6 {[%clk 0:00:06.1]} 50... e5 {[%clk 0:00:01.6]} 51. Kd3 {[%clk 0:00:06]}
51... Be1 {[%clk 0:00:01.5]} 52. Bd5 {[%clk 0:00:05.6]} 52... Ke7 {[%clk
0:00:01.3]} 53. f3 {[%clk 0:00:05.5]} 53... f5 {[%clk 0:00:00.8]} 54. Kc4 {[%clk
0:00:04.9]} 1-0

[Event "Early-Titled-Tuesday-Blitz-May-14-2024"]
[Site "Chess.com"]
[Date "2024.05.14"]
[Round "10"]
[White "Alexchess1984"]
[Black "emiliocordova"]
[Result "0-1"]
[WhiteElo "2711"]
[BlackElo "2909"]
[TimeControl "180+1"]
[EndTime "9:58:21 PDT"]
[Termination "emiliocordova won by resignation"]

1. e4 {[%clk 0:03:00.9]} 1... c5 {[%clk 0:02:58.7]} 2. c3 {[%clk 0:03:00.8]}
2... d5 {[%clk 0:02:57.8]} 3. exd5 {[%clk 0:03:00.8]} 3... Qxd5 {[%clk
0:02:58.7]} 4. d4 {[%clk 0:03:01.1]} 4... Nc6 {[%clk 0:02:59.3]} 5. Nf3 {[%clk
0:03:01.3]} 5... Nf6 {[%clk 0:02:57.2]} 6. Be3 {[%clk 0:03:00]} 6... cxd4 {[%clk
0:02:56.7]} 7. cxd4 {[%clk 0:03:00]} 7... e6 {[%clk 0:02:57.2]} 8. a3 {[%clk
0:03:00.1]} 8... Be7 {[%clk 0:02:57]} 9. Nc3 {[%clk 0:03:00.2]} 9... Qd6 {[%clk
0:02:55.6]} 10. Bd3 {[%clk 0:03:00.9]} 10... O-O {[%clk 0:02:55.8]} 11. Qc2
{[%clk 0:03:00.6]} 11... h6 {[%clk 0:02:52.6]} 12. Rd1 {[%clk 0:02:59.9]} 12...
Bd7 {[%clk 0:02:48.2]} 13. O-O {[%clk 0:02:58.3]} 13... Rac8 {[%clk 0:02:48.4]}
14. Qd2 {[%clk 0:02:50.3]} 14... Bd8 {[%clk 0:01:36.3]} 15. Bf4 {[%clk
0:02:36.1]} 15... Qe7 {[%clk 0:01:35.9]} 16. Rfe1 {[%clk 0:02:35.9]} 16... Bc7
{[%clk 0:01:05.6]} 17. Bxh6 {[%clk 0:02:32.6]} 17... Ng4 {[%clk 0:00:33.3]} 18.
Nd5 {[%clk 0:02:15.9]} 18... Qd6 {[%clk 0:00:16.9]} 19. Nxc7 {[%clk 0:02:00.4]}
19... Nxh6 {[%clk 0:00:14.6]} 20. Nb5 {[%clk 0:01:55.8]} 20... Qb8 {[%clk
0:00:14.9]} 21. Bb1 {[%clk 0:01:49.4]} 21... Rfd8 {[%clk 0:00:14.9]} 22. Qd3
{[%clk 0:01:47]} 22... g6 {[%clk 0:00:15.2]} 23. h3 {[%clk 0:01:38.6]} 23... Be8
{[%clk 0:00:15]} 24. Qe3 {[%clk 0:01:38.1]} 24... Kg7 {[%clk 0:00:15]} 25. Nc3
{[%clk 0:01:36.9]} 25... Ne7 {[%clk 0:00:14]} 26. Ne5 {[%clk 0:01:27.5]} 26...
Nhf5 {[%clk 0:00:14.2]} 27. Bxf5 {[%clk 0:01:27.9]} 27... Nxf5 {[%clk
0:00:14.1]} 28. Qe4 {[%clk 0:01:15.8]} 28... Rd6 {[%clk 0:00:09.2]} 29. g4
{[%clk 0:01:11.7]} 29... Ne7 {[%clk 0:00:09.1]} 30. Qf4 {[%clk 0:01:08.7]} 30...
f6 {[%clk 0:00:09.2]} 31. Ne4 {[%clk 0:01:05.9]} 31... Nd5 {[%clk 0:00:08.5]}
32. Qg3 {[%clk 0:01:04.7]} 32... Rdd8 {[%clk 0:00:07.3]} 33. Nf3 {[%clk
0:00:55]} 33... Qxg3+ {[%clk 0:00:08.2]} 34. Nxg3 {[%clk 0:00:50.4]} 34... Ba4
{[%clk 0:00:08.2]} 35. Rc1 {[%clk 0:00:49.3]} 35... Kf7 {[%clk 0:00:06.6]} 36.
g5 {[%clk 0:00:47.6]} 36... Nf4 {[%clk 0:00:07]} 37. gxf6 {[%clk 0:00:44.7]}
37... Kxf6 {[%clk 0:00:07.4]} 38. Ne4+ {[%clk 0:00:40.5]} 38... Ke7 {[%clk
0:00:07.6]} 39. Nc5 {[%clk 0:00:39.7]} 39... Bc6 {[%clk 0:00:07.7]} 40. Rxe6+
{[%clk 0:00:39]} 40... Nxe6 {[%clk 0:00:07.1]} 41. Re1 {[%clk 0:00:31.1]} 41...
Bxf3 {[%clk 0:00:07.2]} 42. Nxe6 {[%clk 0:00:31.2]} 42... Re8 {[%clk 0:00:07.1]}
43. Ng5+ {[%clk 0:00:29.1]} 43... Kd7 {[%clk 0:00:06.8]} 44. Rxe8 {[%clk
0:00:28.9]} 44... Rxe8 {[%clk 0:00:07.7]} 45. Nxf3 {[%clk 0:00:29.4]} 45... Re2
{[%clk 0:00:08]} 46. Ne5+ {[%clk 0:00:29.4]} 46... Ke6 {[%clk 0:00:07.5]} 47.
Nxg6 {[%clk 0:00:29.7]} 47... Rxb2 {[%clk 0:00:07.8]} 48. h4 {[%clk 0:00:30.1]}
48... Kf6 {[%clk 0:00:07.5]} 49. Ne5 {[%clk 0:00:28.4]} 49... Rb3 {[%clk
0:00:07]} 50. Kg2 {[%clk 0:00:25.5]} 50... Rxa3 {[%clk 0:00:07]} 51. h5 {[%clk
0:00:26.1]} 51... b5 {[%clk 0:00:07.2]} 52. h6 {[%clk 0:00:26.5]} 52... b4
{[%clk 0:00:06.5]} 53. d5 {[%clk 0:00:12.5]} 53... Ra5 {[%clk 0:00:06.6]} 54. d6
{[%clk 0:00:11.8]} 54... Rxe5 {[%clk 0:00:06.7]} 55. d7 {[%clk 0:00:12.2]} 55...
Rd5 {[%clk 0:00:06.9]} 56. h7 {[%clk 0:00:12.3]} 56... Kg7 {[%clk 0:00:06.7]}
57. h8=Q+ {[%clk 0:00:12.7]} 57... Kxh8 {[%clk 0:00:06.8]} 0-1

[Event "Early-Titled-Tuesday-Blitz-May-14-2024"]
[Site "Chess.com"]
[Date "2024.05.14"]
[Round "10"]
[White "PeshkaCh"]
[Black "DenisQ"]
[Result "1/2-1/2"]
[WhiteElo "2865"]
[BlackElo "2734"]
[TimeControl "180+1"]
[EndTime "9:58:23 PDT"]
[Termination "Game drawn - insufficient material"]

1. Nf3 {[%clk 0:03:00.9]} 1... Nf6 {[%clk 0:02:59.4]} 2. d4 {[%clk 0:03:01.4]}
2... d5 {[%clk 0:02:58.8]} 3. c4 {[%clk 0:03:01.3]} 3... c6 {[%clk 0:02:58.8]}
4. e3 {[%clk 0:03:01.3]} 4... Bf5 {[%clk 0:02:56.9]} 5. Bd3 {[%clk 0:03:01.7]}
5... Bxd3 {[%clk 0:02:56]} 6. Qxd3 {[%clk 0:03:02.6]} 6... Nbd7 {[%clk
0:02:55.8]} 7. O-O {[%clk 0:03:02.9]} 7... e6 {[%clk 0:02:55.7]} 8. Nbd2 {[%clk
0:03:03.5]} 8... Be7 {[%clk 0:02:55.3]} 9. e4 {[%clk 0:03:04]} 9... dxe4 {[%clk
0:02:55]} 10. Nxe4 {[%clk 0:03:04.9]} 10... Nxe4 {[%clk 0:02:55.3]} 11. Qxe4
{[%clk 0:03:05.8]} 11... O-O {[%clk 0:02:54.7]} 12. b3 {[%clk 0:03:06.2]} 12...
a5 {[%clk 0:02:53.1]} 13. Bb2 {[%clk 0:03:05.3]} 13... a4 {[%clk 0:02:52.9]} 14.
Qc2 {[%clk 0:03:04.8]} 14... Nf6 {[%clk 0:02:50.1]} 15. Bc3 {[%clk 0:03:01.8]}
15... axb3 {[%clk 0:02:48.9]} 16. axb3 {[%clk 0:03:02.7]} 16... Qc7 {[%clk
0:02:43.3]} 17. h3 {[%clk 0:03:02.2]} 17... h6 {[%clk 0:02:40.1]} 18. Ne5 {[%clk
0:03:01.3]} 18... Rfd8 {[%clk 0:02:37.2]} 19. Rfe1 {[%clk 0:02:56.3]} 19... Rdc8
{[%clk 0:02:28.2]} 20. Qe2 {[%clk 0:02:54.7]} 20... Qd8 {[%clk 0:02:23.7]} 21.
b4 {[%clk 0:02:31.8]} 21... Rxa1 {[%clk 0:02:20.7]} 22. Rxa1 {[%clk 0:02:32.7]}
22... Ra8 {[%clk 0:02:20.6]} 23. Re1 {[%clk 0:02:28.5]} 23... Ra3 {[%clk
0:02:00.6]} 24. Qd2 {[%clk 0:01:20.8]} 24... Qa8 {[%clk 0:01:55.6]} 25. Nd3
{[%clk 0:01:08.4]} 25... Ra2 {[%clk 0:01:43.9]} 26. Qc1 {[%clk 0:00:50.8]} 26...
Qa3 {[%clk 0:01:35.5]} 27. Nc5 {[%clk 0:00:24.5]} 27... Qxc1 {[%clk 0:01:27.2]}
28. Rxc1 {[%clk 0:00:24.2]} 28... b5 {[%clk 0:01:27.7]} 29. cxb5 {[%clk
0:00:21.6]} 29... cxb5 {[%clk 0:01:28.5]} 30. Be1 {[%clk 0:00:18.5]} 30... Nd5
{[%clk 0:01:27.3]} 31. Nd3 {[%clk 0:00:15.6]} 31... Ra3 {[%clk 0:01:26.7]} 32.
Ne5 {[%clk 0:00:15.4]} 32... f6 {[%clk 0:01:20.1]} 33. Nc6 {[%clk 0:00:15.4]}
33... Bd6 {[%clk 0:01:17.1]} 34. Nd8 {[%clk 0:00:15.4]} 34... Bxb4 {[%clk
0:00:45.4]} 35. Bxb4 {[%clk 0:00:14.9]} 35... Nxb4 {[%clk 0:00:46.3]} 36. Nxe6
{[%clk 0:00:12.4]} 36... Kf7 {[%clk 0:00:28.4]} 37. Nc7 {[%clk 0:00:12.5]} 37...
Nd3 {[%clk 0:00:25.6]} 38. Rb1 {[%clk 0:00:13]} 38... b4 {[%clk 0:00:25]} 39. d5
{[%clk 0:00:12.8]} 39... Rc3 {[%clk 0:00:19.2]} 40. d6 {[%clk 0:00:11.6]} 40...
Rc1+ {[%clk 0:00:17.6]} 41. Rxc1 {[%clk 0:00:12]} 41... Nxc1 {[%clk 0:00:18.5]}
42. d7 {[%clk 0:00:12.7]} 42... Ke7 {[%clk 0:00:18.3]} 43. Nd5+ {[%clk
0:00:13.2]} 43... Kxd7 {[%clk 0:00:18.4]} 44. Nxb4 {[%clk 0:00:13.9]} 44... Kd6
{[%clk 0:00:18.9]} 45. g3 {[%clk 0:00:14]} 45... Nb3 {[%clk 0:00:19.3]} 46. Kg2
{[%clk 0:00:14.4]} 46... Nc5 {[%clk 0:00:19.8]} 47. h4 {[%clk 0:00:14.8]} 47...
Ke6 {[%clk 0:00:20.4]} 48. Nc6 {[%clk 0:00:14.5]} 48... Ne4 {[%clk 0:00:20.6]}
49. Nd4+ {[%clk 0:00:14.2]} 49... Ke5 {[%clk 0:00:20.6]} 50. Nf3+ {[%clk
0:00:13.8]} 50... Kf5 {[%clk 0:00:20.8]} 51. Nd4+ {[%clk 0:00:14.1]} 51... Ke5
{[%clk 0:00:21]} 52. Nc6+ {[%clk 0:00:14.2]} 52... Kd6 {[%clk 0:00:20.5]} 53.
Nb4 {[%clk 0:00:14.9]} 53... g5 {[%clk 0:00:20.6]} 54. hxg5 {[%clk 0:00:14.9]}
54... hxg5 {[%clk 0:00:21.5]} 55. Nc2 {[%clk 0:00:15.4]} 55... Ke5 {[%clk
0:00:21.2]} 56. Ne3 {[%clk 0:00:16]} 56... f5 {[%clk 0:00:20.6]} 57. Nc4+ {[%clk
0:00:16.3]} 57... Kd4 {[%clk 0:00:20.1]} 58. Ne3 {[%clk 0:00:13.7]} 58... f4
{[%clk 0:00:17.7]} 59. gxf4 {[%clk 0:00:14.1]} 59... gxf4 {[%clk 0:00:18.3]} 60.
Nf5+ {[%clk 0:00:14.8]} 60... Ke5 {[%clk 0:00:18.1]} 61. Nh4 {[%clk 0:00:15.5]}
61... f3+ {[%clk 0:00:16.2]} 62. Nxf3+ {[%clk 0:00:15.1]} 62... Kf4 {[%clk
0:00:16.3]} 63. Nh4 {[%clk 0:00:14.7]} 63... Nxf2 {[%clk 0:00:17.2]} 1/2-1/2

[Event "Early-Titled-Tuesday-Blitz-May-14-2024"]
[Site "Chess.com"]
[Date "2024.05.14"]
[Round "10"]
[White "malakismayil"]
[Black "Dolphin_2010"]
[Result "0-1"]
[WhiteElo "2528"]
[BlackElo "2631"]
[TimeControl "180+1"]
[EndTime "9:58:27 PDT"]
[Termination "Dolphin_2010 won by checkmate"]

1. e4 {[%clk 0:03:00.9]} 1... c6 {[%clk 0:02:21.6]} 2. d4 {[%clk 0:03:00.4]}
2... d5 {[%clk 0:02:22.5]} 3. Nc3 {[%clk 0:02:58.4]} 3... dxe4 {[%clk
0:02:21.1]} 4. Nxe4 {[%clk 0:02:59.3]} 4... Nf6 {[%clk 0:02:21.3]} 5. Nxf6+
{[%clk 0:02:59.4]} 5... exf6 {[%clk 0:02:22.2]} 6. c3 {[%clk 0:02:59.9]} 6...
Bd6 {[%clk 0:02:22.4]} 7. Bd3 {[%clk 0:03:00.8]} 7... O-O {[%clk 0:02:22.8]} 8.
Ne2 {[%clk 0:03:01.6]} 8... Re8 {[%clk 0:02:23.2]} 9. Qc2 {[%clk 0:03:02.5]}
9... f5 {[%clk 0:02:23.5]} 10. Bxf5 {[%clk 0:02:49.6]} 10... Bxf5 {[%clk
0:02:24.4]} 11. Qxf5 {[%clk 0:02:49.6]} 11... Nd7 {[%clk 0:02:23.7]} 12. Be3
{[%clk 0:02:48.1]} 12... Nb6 {[%clk 0:02:16.1]} 13. O-O {[%clk 0:02:37.8]} 13...
Nc4 {[%clk 0:02:13.2]} 14. b3 {[%clk 0:02:38]} 14... g6 {[%clk 0:02:13.2]} 15.
Qf3 {[%clk 0:02:35.4]} 15... Nxe3 {[%clk 0:02:07.7]} 16. fxe3 {[%clk 0:02:36.3]}
16... f5 {[%clk 0:02:07.6]} 17. Rae1 {[%clk 0:02:32.9]} 17... Qg5 {[%clk
0:01:59.1]} 18. Ng3 {[%clk 0:02:10.1]} 18... h5 {[%clk 0:00:50.5]} 19. e4 {[%clk
0:01:52.2]} 19... h4 {[%clk 0:00:47.1]} 20. Nxf5 {[%clk 0:01:40.2]} 20... gxf5
{[%clk 0:00:41.8]} 21. Qxf5 {[%clk 0:01:41.1]} 21... Qxf5 {[%clk 0:00:38.2]} 22.
Rxf5 {[%clk 0:01:42]} 22... Kg7 {[%clk 0:00:31.7]} 23. e5 {[%clk 0:01:38.1]}
23... Be7 {[%clk 0:00:29.9]} 24. Ref1 {[%clk 0:01:31.5]} 24... Rf8 {[%clk
0:00:28.7]} 25. g4 {[%clk 0:01:32]} 25... hxg3 {[%clk 0:00:25.9]} 26. hxg3
{[%clk 0:01:32.9]} 26... Rxf5 {[%clk 0:00:25.8]} 27. Rxf5 {[%clk 0:01:32.3]}
27... Kg6 {[%clk 0:00:26.7]} 28. g4 {[%clk 0:01:31]} 28... Rh8 {[%clk
0:00:24.6]} 29. Kg2 {[%clk 0:01:27.3]} 29... Rh4 {[%clk 0:00:20.1]} 30. Rf4
{[%clk 0:01:22.5]} 30... Kg5 {[%clk 0:00:15.8]} 31. Rf7 {[%clk 0:01:22.1]} 31...
Ba3 {[%clk 0:00:12.5]} 32. Rxb7 {[%clk 0:01:19.1]} 32... a5 {[%clk 0:00:09]} 33.
Rc7 {[%clk 0:00:40.4]} 33... Kf4 {[%clk 0:00:06]} 34. Rxc6 {[%clk 0:00:37.8]}
34... Rxg4+ {[%clk 0:00:06.4]} 35. Kf2 {[%clk 0:00:38.1]} 35... Bc1 {[%clk
0:00:07]} 36. Rf6+ {[%clk 0:00:25.7]} 36... Ke4 {[%clk 0:00:07.3]} 37. e6 {[%clk
0:00:25.6]} 37... Be3+ {[%clk 0:00:07.2]} 38. Ke2 {[%clk 0:00:26]} 38... Rg2+
{[%clk 0:00:05.2]} 39. Kf1 {[%clk 0:00:24.1]} 39... Rg1+ {[%clk 0:00:03.7]} 40.
Ke2 {[%clk 0:00:24.4]} 40... Rg2+ {[%clk 0:00:04.4]} 41. Ke1 {[%clk 0:00:21.3]}
41... Rg7 {[%clk 0:00:01.4]} 42. Rf7 {[%clk 0:00:19.8]} 42... Rg1+ {[%clk
0:00:00.8]} 43. Ke2 {[%clk 0:00:16.2]} 43... Rg2+ {[%clk 0:00:01.5]} 44. Kf1
{[%clk 0:00:14]} 44... Rg6 {[%clk 0:00:02.1]} 45. e7 {[%clk 0:00:13.5]} 45...
Re6 {[%clk 0:00:02.7]} 46. Ke2 {[%clk 0:00:08.4]} 46... Bg5 {[%clk 0:00:03.3]}
47. Kd1 {[%clk 0:00:06.8]} 47... Kd3 {[%clk 0:00:02.5]} 48. Rf3+ {[%clk
0:00:06.4]} 48... Be3 {[%clk 0:00:02.6]} 49. d5 {[%clk 0:00:04.8]} 49... Rxe7
{[%clk 0:00:02.2]} 50. c4 {[%clk 0:00:05.6]} 50... Rh7 {[%clk 0:00:01.9]} 51.
Rf1 {[%clk 0:00:05.3]} 51... Rh2 {[%clk 0:00:02.2]} 52. d6 {[%clk 0:00:04.2]}
52... Rxa2 {[%clk 0:00:02.2]} 53. d7 {[%clk 0:00:00.1]} 53... Ra1# {[%clk
0:00:03.1]} 0-1

[Event "Early-Titled-Tuesday-Blitz-May-14-2024"]
[Site "Chess.com"]
[Date "2024.05.14"]
[Round "10"]
[White "SujanaLohani"]
[Black "ab-lsv"]
[Result "1-0"]
[WhiteElo "2022"]
[BlackElo "2330"]
[TimeControl "180+1"]
[EndTime "9:58:27 PDT"]
[Termination "SujanaLohani won by resignation"]

1. e4 {[%clk 0:02:21.9]} 1... c6 {[%clk 0:02:59.9]} 2. d4 {[%clk 0:02:20.8]}
2... d5 {[%clk 0:03:00.8]} 3. exd5 {[%clk 0:02:20]} 3... cxd5 {[%clk 0:03:01.7]}
4. Bd3 {[%clk 0:02:20]} 4... Nf6 {[%clk 0:03:01.6]} 5. c3 {[%clk 0:02:19.9]}
5... Bg4 {[%clk 0:03:01.6]} 6. Qb3 {[%clk 0:02:19.2]} 6... Qc7 {[%clk
0:03:01.8]} 7. h3 {[%clk 0:02:18.5]} 7... Bh5 {[%clk 0:03:01.8]} 8. Ne2 {[%clk
0:02:18.7]} 8... Bxe2 {[%clk 0:03:01.6]} 9. Bxe2 {[%clk 0:02:17.9]} 9... e6
{[%clk 0:03:01.8]} 10. O-O {[%clk 0:02:18]} 10... Bd6 {[%clk 0:03:02]} 11. Nd2
{[%clk 0:02:18.7]} 11... O-O {[%clk 0:03:00.8]} 12. Nf3 {[%clk 0:02:19.2]} 12...
Nc6 {[%clk 0:03:01.3]} 13. Bd3 {[%clk 0:02:18.9]} 13... Rab8 {[%clk 0:02:58.1]}
14. Bg5 {[%clk 0:02:18.5]} 14... Bf4 {[%clk 0:02:45.5]} 15. Bxf6 {[%clk
0:02:17.9]} 15... gxf6 {[%clk 0:02:45.7]} 16. g3 {[%clk 0:02:16.9]} 16... Bxg3
{[%clk 0:02:40.2]} 17. fxg3 {[%clk 0:02:16.3]} 17... Qxg3+ {[%clk 0:02:40.4]}
18. Kh1 {[%clk 0:02:16]} 18... Qxh3+ {[%clk 0:02:40.5]} 19. Kg1 {[%clk
0:02:13.5]} 19... Kh8 {[%clk 0:02:23.8]} 20. Kf2 {[%clk 0:02:13.2]} 20... Rg8
{[%clk 0:02:20.9]} 21. Rg1 {[%clk 0:02:10.5]} 21... b6 {[%clk 0:02:09.1]} 22.
Qc2 {[%clk 0:02:07.4]} 22... Ne7 {[%clk 0:01:49.2]} 23. Ke3 {[%clk 0:01:54.9]}
23... Qh6+ {[%clk 0:01:44.5]} 24. Kf2 {[%clk 0:01:52.2]} 24... Ng6 {[%clk
0:01:27.6]} 25. Rh1 {[%clk 0:01:51.9]} 25... Qf4 {[%clk 0:01:27.6]} 26. Qd2
{[%clk 0:01:46.3]} 26... Qxd2+ {[%clk 0:01:24.3]} 27. Nxd2 {[%clk 0:01:47.2]}
27... Kg7 {[%clk 0:01:24.6]} 28. Rag1 {[%clk 0:01:44.4]} 28... h6 {[%clk
0:01:15.4]} 29. Nf3 {[%clk 0:01:44.2]} 29... Rh8 {[%clk 0:00:55.9]} 30. Nh4
{[%clk 0:01:43.2]} 30... f5 {[%clk 0:00:55.7]} 31. Nf3 {[%clk 0:01:41]} 31...
Kf6 {[%clk 0:00:55.8]} 32. Ke3 {[%clk 0:01:37.8]} 32... Rbg8 {[%clk 0:00:51.1]}
33. Rg2 {[%clk 0:01:34.7]} 33... h5 {[%clk 0:00:46.4]} 34. Rgh2 {[%clk
0:01:33.6]} 34... h4 {[%clk 0:00:41.1]} 35. Nxh4 {[%clk 0:01:29.4]} 35... Nxh4
{[%clk 0:00:41.5]} 36. Rxh4 {[%clk 0:01:28.6]} 36... Rg3+ {[%clk 0:00:41.5]} 37.
Kd2 {[%clk 0:01:25.9]} 37... Rg2+ {[%clk 0:00:40.1]} 38. Be2 {[%clk 0:01:25]}
38... Rhg8 {[%clk 0:00:39.7]} 39. Rh6+ {[%clk 0:01:23.5]} 39... Ke7 {[%clk
0:00:39.7]} 40. R6h2 {[%clk 0:01:22.9]} 40... f4 {[%clk 0:00:38.6]} 41. Rxg2
{[%clk 0:01:20.4]} 41... Rxg2 {[%clk 0:00:38.6]} 42. Rf1 {[%clk 0:01:20.9]}
42... f6 {[%clk 0:00:27.8]} 43. Rxf4 {[%clk 0:01:20.6]} 43... e5 {[%clk
0:00:28.3]} 44. dxe5 {[%clk 0:01:15.3]} 44... fxe5 {[%clk 0:00:28.6]} 45. Ra4
{[%clk 0:01:15.7]} 45... a5 {[%clk 0:00:28.5]} 46. b4 {[%clk 0:01:15.5]} 46...
axb4 {[%clk 0:00:25.9]} 47. Rxb4 {[%clk 0:01:09.9]} 47... Rg6 {[%clk 0:00:25.5]}
48. Bf3 {[%clk 0:01:05.4]} 48... Rd6 {[%clk 0:00:23.9]} 49. Rb5 {[%clk
0:01:03.5]} 49... Ke6 {[%clk 0:00:23.4]} 50. Ke3 {[%clk 0:01:02]} 50... d4+
{[%clk 0:00:23.4]} 51. cxd4 {[%clk 0:00:59.8]} 51... exd4+ {[%clk 0:00:23.8]}
52. Kd3 {[%clk 0:00:59.9]} 52... Kd7 {[%clk 0:00:24.1]} 53. Rd5 {[%clk
0:00:56.4]} 53... Rxd5 {[%clk 0:00:22.1]} 54. Bxd5 {[%clk 0:00:55]} 54... Kd6
{[%clk 0:00:22.5]} 55. Kxd4 {[%clk 0:00:53]} 55... b5 {[%clk 0:00:23]} 56. Bb3
{[%clk 0:00:53.9]} 56... Kc6 {[%clk 0:00:21.9]} 57. Ke5 {[%clk 0:00:51.6]} 57...
Kc5 {[%clk 0:00:22.2]} 58. Ke4 {[%clk 0:00:49.9]} 58... Kb4 {[%clk 0:00:21.2]}
59. Kd4 {[%clk 0:00:50.4]} 59... Ka5 {[%clk 0:00:17.9]} 60. Kc5 {[%clk
0:00:50.6]} 60... Ka6 {[%clk 0:00:17.7]} 61. Kb4 {[%clk 0:00:47.3]} 61... Kb6
{[%clk 0:00:17.9]} 62. Bc2 {[%clk 0:00:47.9]} 62... Kc6 {[%clk 0:00:17.6]} 63.
Bd3 {[%clk 0:00:48.8]} 63... Kb6 {[%clk 0:00:18.1]} 64. Bxb5 {[%clk 0:00:49.7]}
64... Kb7 {[%clk 0:00:18.2]} 65. a4 {[%clk 0:00:50.6]} 65... Ka7 {[%clk
0:00:18.8]} 66. a5 {[%clk 0:00:51.5]} 66... Kb7 {[%clk 0:00:18]} 67. Bf1 {[%clk
0:00:52.4]} 67... Ka7 {[%clk 0:00:18.4]} 68. Bg2 {[%clk 0:00:53.3]} 68... Ka6
{[%clk 0:00:17.7]} 69. Bf3 {[%clk 0:00:53.8]} 69... Ka7 {[%clk 0:00:17.7]} 70.
Kb5 {[%clk 0:00:54.7]} 70... Kb8 {[%clk 0:00:17.2]} 71. Kb6 {[%clk 0:00:55.6]}
1-0